bitfinex-derivatives/quotes_BTCF0:USTF0_20251216
["timestamp","ask_amount","ask_price","bid_price","bid_amount"]
[1765883785486,0.2229707,87046.0,87045.0,0.33491]
[1765883787184,0.2249707,87046.0,87045.0,0.33491]
[1765883787981,0.21348,87046.0,87045.0,0.33491]
[1765883788378,0.21348,87046.0,87045.0,0.07834]
[1765883788688,0.20471,87041.0,87040.0,0.33491]
[1765883789090,0.2162013,87041.0,87040.0,0.33491]
[1765883789471,0.2162013,87041.0,87040.0,0.3464014]
[1765883790073,0.2172013,87041.0,87040.0,0.3464014]
[1765883790277,0.2172013,87041.0,87036.0,0.01147802]
[1765883790278,0.2133718,87037.0,87036.0,0.01147802]
[1765883790478,0.2115114,87040.0,87039.0,0.0114914]
[1765883790688,0.2115114,87040.0,87039.0,0.2680614]
[1765883790889,0.20002,87040.0,87039.0,0.2680614]
[1765883791983,0.2115114,87040.0,87039.0,0.25657]
[1765883793492,0.20002,87040.0,87039.0,0.25657]
[1765883794294,1.16497636,87049.0,87048.0,0.31698]
[1765883794484,1.1819003,87049.0,87048.0,0.31698]
[1765883794994,1.1819003,87049.0,87048.0,0.3284704]
[1765883795485,0.5645803,87049.0,87048.0,0.3284704]
[1765883796387,0.59318817,87049.0,87048.0,0.3284704]
[1765883796797,0.5655803,87049.0,87048.0,0.31698]
[1765883796998,0.59318817,87049.0,87048.0,0.31698]
[1765883799897,0.59318817,87049.0,87048.0,0.07509]
[1765883800296,0.59318817,87049.0,87044.0,0.2533808]
[1765883800297,0.193231,87045.0,87044.0,0.2533808]
[1765883801690,0.194231,87045.0,87044.0,0.2533808]
[1765883802286,0.22188432,87045.0,87044.0,0.2533808]
[1765883802490,0.22288432,87045.0,87044.0,0.2533808]
[1765883804398,0.21139332,87045.0,87044.0,0.2533808]
[1765883805192,0.12052332,87045.0,87044.0,0.2533808]
[1765883805496,0.04114412,87045.0,87044.0,0.2533808]
[1765883805696,0.12786412,87045.0,87044.0,0.2533808]
[1765883805896,0.11637332,87045.0,87044.0,0.2533808]
[1765883806996,0.02965332,87045.0,87044.0,0.2533808]
[1765883807190,0.002,87045.0,87044.0,0.2533808]
[1765883808597,0.0114898,87053.0,87052.0,0.2533799]
[1765883808598,0.0965998,87053.0,87052.0,0.2533799]
[1765883808897,0.12428405,87053.0,87052.0,0.2533799]
[1765883809097,0.20780405,87053.0,87052.0,0.2533799]
[1765883809689,0.20980405,87053.0,87052.0,0.24189]
[1765883810498,0.20980405,87053.0,87052.0,0.2533799]
[1765883811303,0.21180405,87053.0,87052.0,0.2533799]
[1765883812693,0.20031425,87053.0,87052.0,0.2533799]
[1765883815007,0.03168425,87053.0,87052.0,0.2533799]
[1765883815202,0.03168425,87053.0,87052.0,0.6141799]
[1765883815203,0.004,87053.0,87052.0,0.6141799]
[1765883816910,0.07927,87062.0,87061.0,0.2533787]
[1765883817105,0.10694086,87062.0,87061.0,0.2533787]
[1765883818398,0.10994086,87062.0,87061.0,0.2533787]
[1765883818611,0.11294086,87062.0,87061.0,0.2533787]
[1765883818902,0.006,87062.0,87061.0,0.2533787]
[1765883820699,0.0885376,87069.0,87068.0,0.2533777]
[1765883820904,0.02758422,87069.0,87068.0,0.2533777]
[1765883821206,0.51406,87073.0,87072.0,0.2533772]
[1765883821405,0.38838326,87073.0,87072.0,0.2533772]
[1765883821794,0.02758326,87073.0,87072.0,0.2533772]
[1765883821995,0.1643263,87080.0,87079.0,0.2533763]
[1765883822303,0.19189694,87080.0,87079.0,0.2533763]
[1765883822505,0.5124,87085.0,87084.0,0.2533756]
[1765883822711,0.53995795,87085.0,87084.0,0.2533756]
[1765883822912,0.02755795,87085.0,87084.0,0.2533756]
[1765883823104,0.5124,87091.0,87090.0,0.3284648]
[1765883823300,0.5124,87091.0,87090.0,0.33977705]
[1765883823301,0.53995562,87091.0,87090.0,0.33977705]
[1765883824096,0.46415562,87091.0,87090.0,0.33977705]
[1765883824602,0.54414562,87091.0,87090.0,0.33977705]
[1765883825107,0.54214562,87091.0,87090.0,0.33977705]
[1765883825409,0.1492,87096.0,87095.0,0.2439042]
[1765883825603,0.1492,87096.0,87095.0,0.23242]
[1765883827305,0.1591047,87091.0,87090.0,0.07709]
[1765883827502,0.1591047,87091.0,87090.0,0.002]
[1765883827807,0.158346,87081.0,87080.0,0.08672251]
[1765883828407,0.158346,87081.0,87080.0,0.31914251]
[1765883828610,0.14686,87081.0,87080.0,0.31914251]
[1765883828909,0.1461,87086.0,87085.0,0.2439055]
[1765883829110,0.68114561,87095.0,87094.0,0.23242]
[1765883829316,0.5069,87095.0,87094.0,0.23242]
[1765883829503,0.5183842,87095.0,87094.0,0.23242]
[1765883830411,0.5183842,87095.0,87094.0,0.23542]
[1765883830616,0.4453342,87095.0,87094.0,0.23542]
[1765883831309,0.43385,87095.0,87094.0,0.23742]
[1765883831508,0.3608,87095.0,87094.0,0.23742]
[1765883832619,0.79270628,87098.0,87097.0,0.23242]
[1765883833417,0.72113628,87098.0,87097.0,0.23242]
[1765883833614,0.72113628,87098.0,87097.0,0.23342]
[1765883833809,0.72113628,87098.0,87097.0,0.23542]
[1765883834315,0.00229628,87098.0,87097.0,0.23542]
[1765883834504,0.86088,87112.0,87111.0,0.2439021]
[1765883834718,0.7188,87112.0,87111.0,0.2439021]
[1765883835008,0.3608,87114.0,87113.0,0.23242]
[1765883835210,0.3608,87121.0,87111.0,0.0114821]
[1765883835211,0.50252,87121.0,87120.0,0.23242]
[1765883835405,0.50252,87121.0,87120.0,0.2439009]
[1765883836013,0.5140008,87121.0,87120.0,0.23242]
[1765883836821,0.5150008,87121.0,87120.0,0.23242]
[1765883837007,0.1518014,87116.0,87115.0,0.3005]
[1765883837620,0.1511218,87113.0,87112.0,0.00017224]
[1765883838012,0.5119218,87113.0,87112.0,0.00017224]
[1765883838428,0.53935034,87113.0,87112.0,0.00017224]
[1765883838725,0.5119218,87113.0,87112.0,0.00017224]
[1765883839310,0.53935199,87113.0,87112.0,0.00017224]
[1765883839510,0.5119218,87113.0,87112.0,0.00017224]
[1765883840319,0.5393555,87113.0,87112.0,0.00017224]
[1765883843126,0.5119218,87113.0,87112.0,0.00017224]
[1765883843321,0.5119218,87113.0,87112.0,0.23259224]
[1765883843523,0.5119218,87113.0,87112.0,0.24407414]
[1765883844534,0.49554,87121.0,87120.0,0.23242]
[1765883844744,0.5070208,87121.0,87120.0,0.23242]
[1765883845640,0.5080208,87121.0,87120.0,0.23242]
[1765883846144,0.43017,87121.0,87120.0,0.23242]
[1765883847054,0.3628,87121.0,87120.0,0.23242]
[1765883847443,0.002,87121.0,87120.0,0.23242]
[1765883848742,0.78539,87129.0,87128.0,0.23242]
[1765883849147,0.8629297,87129.0,87128.0,0.23242]
[1765883849351,0.13212,87125.0,87124.0,0.47701]
[1765883849647,0.13148,87116.0,87115.0,0.3005]
[1765883849853,0.1429614,87116.0,87115.0,0.3005]
[1765883850352,0.1429614,87116.0,87115.0,0.3119816]
[1765883850740,0.0769111,87119.0,87118.0,0.2439012]
[1765883851749,0.1430311,87119.0,87118.0,0.23242]
[1765883851951,0.1417214,87116.0,87115.0,0.06808]
[1765883852252,0.1417214,87116.0,87115.0,0.3005]
[1765883852451,0.16925531,87116.0,87115.0,0.3005]
[1765883854057,0.17025531,87116.0,87115.0,0.3005]
[1765883854252,0.10513531,87116.0,87115.0,0.3005]
[1765883855858,0.02853391,87116.0,87115.0,0.3005]
[1765883856054,0.001,87116.0,87115.0,0.3005]
[1765883857556,0.12678,87116.0,87115.0,0.3005]
[1765883858257,0.15432917,87116.0,87115.0,0.3005]
[1765883861663,0.16581057,87116.0,87115.0,0.3005]
[1765883861861,0.15432917,87116.0,87115.0,0.3005]
[1765883864462,0.15332917,87116.0,87115.0,0.3055]
[1765883864853,0.15332917,87116.0,87115.0,0.3025]
[1765883865052,0.15332917,87116.0,87115.0,0.3055]
[1765883865459,0.15332917,87116.0,87115.0,0.3025]
[1765883865762,0.15332917,87116.0,87115.0,0.3055]
[1765883866064,0.15332917,87116.0,87115.0,0.3169816]
[1765883866250,0.15332917,87116.0,87115.0,0.3055]
[1765883866451,0.15332917,87116.0,87115.0,0.07308]
[1765883866659,0.15332917,87116.0,87115.0,0.005]
[1765883867059,0.51412917,87116.0,87115.0,0.005]
[1765883867359,0.51412917,87116.0,87115.0,0.003]
[1765883867558,0.51412917,87116.0,87115.0,0.005]
[1765883867760,0.51412917,87116.0,87115.0,0.002]
[1765883867964,0.51412917,87116.0,87115.0,0.004]
[1765883868157,0.51412917,87116.0,87115.0,0.002]
[1765883868456,0.12016,87113.0,87112.0,0.00017224]
[1765883868660,0.14770917,87113.0,87112.0,0.00017224]
[1765883869164,0.15919097,87113.0,87112.0,0.11380224]
[1765883869659,0.15919097,87113.0,87112.0,0.00017224]
[1765883870252,0.15919097,87113.0,87112.0,0.22839224]
[1765883870446,0.15919097,87113.0,87112.0,0.22939224]
[1765883870648,0.03903097,87113.0,87112.0,0.24087414]
[1765883870848,0.02754917,87113.0,87112.0,0.24087414]
[1765883871051,0.3608,87116.0,87115.0,0.2397016]
[1765883871257,0.38839736,87116.0,87115.0,0.2397016]
[1765883871450,0.44773736,87116.0,87115.0,0.2397016]
[1765883871658,0.38839736,87116.0,87115.0,0.2397016]
[1765883871854,0.02759736,87116.0,87115.0,0.2397016]
[1765883873662,0.14531736,87116.0,87115.0,0.2407016]
[1765883876462,0.02759736,87116.0,87115.0,0.2407016]
[1765883876768,0.0114811,87119.0,87118.0,0.2397006]
[1765883876969,0.09701815,87119.0,87118.0,0.2397006]
[1765883877170,0.15494815,87119.0,87118.0,0.2397006]
[1765883877563,0.15494815,87119.0,87118.0,0.22822]
[1765883877955,0.09701815,87119.0,87118.0,0.22822]
[1765883878161,0.03908815,87119.0,87118.0,0.22922]
[1765883878771,0.02760705,87119.0,87118.0,0.22922]
[1765883878955,0.0114807,87122.0,87121.0,0.22822]
[1765883879153,0.15410472,87122.0,87121.0,0.22822]
[1765883879359,0.15410472,87122.0,87121.0,0.2397008]
[1765883879764,0.09662472,87122.0,87121.0,0.2397008]
[1765883879966,0.15388472,87122.0,87121.0,0.2397008]
[1765883880366,0.11452,87115.0,87114.0,0.29548]
[1765883880565,0.14218402,87115.0,87114.0,0.29548]
[1765883880767,0.02766402,87115.0,87114.0,0.3069617]
[1765883880973,0.03914972,87122.0,87121.0,0.2397008]
[1765883881266,0.4863805,87123.0,87122.0,0.29548]
[1765883881454,0.51404602,87123.0,87122.0,0.29548]
[1765883882260,0.50256552,87123.0,87122.0,0.29548]
[1765883882564,0.38846552,87123.0,87122.0,0.29548]
[1765883883368,0.38946552,87123.0,87122.0,0.29548]
[1765883883771,0.3618,87123.0,87122.0,0.29548]
[1765883884172,0.001,87123.0,87122.0,0.29548]
[1765883886476,0.0676795,87131.0,87130.0,0.2286296]
[1765883886774,0.09532553,87131.0,87130.0,0.2286296]
[1765883887171,0.15030553,87131.0,87130.0,0.2286296]
[1765883887369,0.09471553,87131.0,87130.0,0.2286296]
[1765883887577,0.0680695,87131.0,87130.0,0.2286296]
[1765883887776,0.0690695,87131.0,87130.0,0.2286296]
[1765883888472,0.1244595,87131.0,87130.0,0.2286296]
[1765883888872,0.00229522,87138.0,87137.0,0.2286287]
[1765883889168,0.00229522,87138.0,87137.0,0.5894287]
[1765883889768,0.1214768,87152.0,87151.0,0.2286265]
[1765883889966,0.14909287,87152.0,87151.0,0.2286265]
[1765883890780,0.14909287,87152.0,87151.0,0.24002539]
[1765883892074,0.3608,87154.0,87153.0,0.21715]
[1765883892278,0.41542,87154.0,87153.0,0.21715]
[1765883892677,0.47004,87154.0,87153.0,0.21715]
[1765883892979,0.41523,87154.0,87153.0,0.21715]
[1765883893168,0.3608,87154.0,87153.0,0.21715]
[1765883893368,0.3618,87154.0,87153.0,0.21715]
[1765883894372,0.1085,87152.0,87151.0,0.01139889]
[1765883894578,0.10831,87144.0,87143.0,0.06520213]
[1765883894773,0.46911,87144.0,87143.0,0.00017213]
[1765883895476,0.46911,87144.0,87136.0,0.06503]
[1765883895477,0.1195987,87137.0,87136.0,0.06503]
[1765883895664,0.1194196,87130.0,87129.0,0.06503]
[1765883896067,0.1194196,87130.0,87129.0,0.16842]
[1765883896478,0.1194196,87130.0,87129.0,0.29367501]
[1765883897069,0.4802196,87130.0,87129.0,0.06503]
[1765883897474,0.05406,87130.0,87129.0,0.29643409]
[1765883897676,0.4795187,87137.0,87136.0,0.28218]
[1765883897866,0.7459187,87137.0,87136.0,0.06503]
[1765883898071,0.1185396,87130.0,87129.0,0.08128409]
[1765883898378,0.1185396,87130.0,87129.0,0.08028409]
[1765883898578,0.4793396,87130.0,87129.0,0.004]
[1765883898778,0.4793396,87130.0,87129.0,0.002]
[1765883899085,0.4793396,87130.0,87129.0,0.23077181]
[1765883899274,0.4793396,87130.0,87129.0,0.21915]
[1765883899784,0.4789796,87130.0,87129.0,0.23256944]
[1765883899965,0.4789796,87130.0,87129.0,0.01541944]
[1765883900171,0.4789796,87130.0,87129.0,0.002]
[1765883900691,0.4675,87130.0,87129.0,0.21915]
[1765883900992,1.18614,87130.0,87129.0,0.22215]
[1765883901479,1.18614,87130.0,87129.0,0.005]
[1765883902977,1.21373836,87130.0,87129.0,0.005]
[1765883903780,1.21373836,87130.0,87129.0,0.002]
[1765883903978,1.21373836,87130.0,87129.0,0.004]
[1765883904382,0.10494,87122.0,87121.0,0.01165283]
[1765883905274,0.1164206,87122.0,87121.0,0.01165283]
[1765883905474,0.1164206,87122.0,87121.0,0.11504283]
[1765883906073,0.1164206,87122.0,87121.0,0.12885535]
[1765883906385,0.1164206,87122.0,87121.0,0.01698465]
[1765883907278,0.1164206,87122.0,87121.0,0.12037465]
[1765883907484,0.1164206,87122.0,87121.0,0.11837465]
[1765883907683,0.1164206,87122.0,87121.0,0.01698465]
[1765883908684,0.1164206,87122.0,87121.0,0.12037465]
[1765883909076,0.1164206,87122.0,87121.0,0.00517213]
[1765883909386,0.5049769,87122.0,87121.0,0.00217213]
[1765883909588,0.5049769,87122.0,87121.0,0.00517213]
[1765883909782,0.1144429,87105.0,87104.0,0.06503]
[1765883910081,0.8330429,87105.0,87104.0,0.06503]
[1765883910476,0.1142833,87102.0,87101.0,0.01156987]
[1765883910684,0.1141237,87099.0,87098.0,0.00229628]
[1765883910886,0.14187942,87099.0,87098.0,0.00229628]
[1765883911184,0.1141242,87095.0,87093.0,0.00017213]
[1765883911385,0.14187992,87095.0,87093.0,0.00017213]
[1765883911782,0.14187992,87095.0,87094.0,0.28230762]
[1765883912085,0.8329642,87095.0,87094.0,0.28230762]
[1765883913088,0.8329642,87095.0,87094.0,0.28630762]
[1765883914390,0.8329642,87095.0,87094.0,0.28930762]
[1765883914788,0.8330042,87095.0,87094.0,0.28930762]
[1765883916492,0.8330042,87095.0,87094.0,0.07215762]
[1765883916678,0.8330042,87095.0,87094.0,0.00712762]
[1765883917185,0.8330042,87095.0,87093.0,0.00017213]
[1765883917186,0.10022,87094.0,87093.0,0.00017213]
[1765883917385,0.111706,87081.0,87080.0,0.06503]
[1765883917588,0.422396,87081.0,87080.0,0.28418]
[1765883917878,1.091206,87081.0,87080.0,0.28418]
[1765883918078,1.091206,87081.0,87080.0,0.37834]
[1765883918291,0.372286,87081.0,87080.0,0.37834]
[1765883918494,0.76893,87081.0,87080.0,0.37834]
[1765883919193,0.81976,87081.0,87080.0,0.38334]
[1765883919396,0.81976,87081.0,87080.0,0.38834]
[1765883921792,0.05097,87081.0,87080.0,0.38834]
[1765883921988,0.76989,87081.0,87080.0,0.38834]
[1765883922298,0.81931,87081.0,87080.0,0.38834]
[1765883923591,0.81931,87081.0,87080.0,0.10416]
[1765883923792,1.18011,87081.0,87080.0,0.10416]
[1765883924397,1.18011,87081.0,87080.0,0.16842]
[1765883924894,1.18011,87081.0,87080.0,0.10416]
[1765883925303,0.1095271,87073.0,87072.0,3e-08]
[1765883925488,0.1095289,87059.0,87052.0,0.06426]
[1765883925687,1.57789754,87059.0,87052.0,0.06426]
[1765883926192,1.57789754,87059.0,87042.0,0.01181902]
[1765883926386,1.57789754,87059.0,87050.0,0.00017223]
[1765883926791,1.57789754,87059.0,87058.0,0.00429733]
[1765883927798,1.55049652,87059.0,87058.0,0.00429733]
[1765883929401,1.55049652,87059.0,87058.0,0.22344733]
[1765883930106,1.55053652,87059.0,87058.0,0.22344733]
[1765883931890,0.83125652,87059.0,87058.0,0.22344733]
[1765883932094,1.55053652,87059.0,87058.0,0.22344733]
[1765883932502,1.53900762,87059.0,87058.0,0.22344733]
[1765883932705,1.17820762,87059.0,87058.0,0.22344733]
[1765883933205,0.45896762,87059.0,87058.0,0.22344733]
[1765883933394,1.17828762,87059.0,87058.0,0.22344733]
[1765883934898,1.17832762,87059.0,87058.0,0.22344733]
[1765883935507,0.81752762,87059.0,87058.0,0.22344733]
[1765883938808,0.71948762,87059.0,87058.0,0.22344733]
[1765883939104,0.76680762,87059.0,87058.0,0.22344733]
[1765883939497,0.81412762,87059.0,87058.0,0.22344733]
[1765883940309,0.81412762,87059.0,87058.0,0.00429733]
[1765883940501,0.84218681,87059.0,87058.0,0.00429733]
[1765883942305,0.84218681,87059.0,87058.0,0.22344733]
[1765883942915,0.12282681,87059.0,87058.0,0.22344733]
[1765883943114,0.70886681,87059.0,87058.0,0.22344733]
[1765883944011,0.66154681,87059.0,87058.0,0.22344733]
[1765883944412,0.70822681,87059.0,87058.0,0.22344733]
[1765883944711,0.70822681,87059.0,87058.0,0.11186733]
[1765883946317,0.70822681,87059.0,87058.0,0.22082733]
[1765883947104,0.66154681,87059.0,87058.0,0.22082733]
[1765883947518,0.66154681,87059.0,87058.0,0.23231643]
[1765883951122,0.02818681,87059.0,87058.0,0.23231643]
[1765883951313,0.00012762,87059.0,87058.0,0.23231643]
[1765883952423,0.00017223,87067.0,87066.0,0.297128]
[1765883952722,0.40668,87078.0,87077.0,0.2307366]
[1765883953233,0.43480648,87078.0,87077.0,0.2307366]
[1765883953722,0.0914,87070.0,87069.0,0.00017223]
[1765883954023,0.11952648,87070.0,87069.0,0.00017223]
[1765883954412,0.18152336,87070.0,87069.0,0.00017223]
[1765883955127,0.11952648,87070.0,87069.0,0.00117223]
[1765883955326,0.12152648,87070.0,87069.0,0.00117223]
[1765883955626,0.12152648,87070.0,87069.0,0.00017223]
[1765883955817,0.12252648,87070.0,87069.0,0.00017223]
[1765883956522,0.12252648,87070.0,87069.0,0.21942223]
[1765883957021,0.12252648,87070.0,87069.0,0.00017223]
[1765883957526,0.12052648,87070.0,87069.0,0.00017223]
[1765883957716,0.12152648,87070.0,87069.0,0.00017223]
[1765883957916,0.12052648,87070.0,87069.0,0.00017223]
[1765883958116,0.11952648,87070.0,87069.0,0.00017223]
[1765883958329,0.12052648,87070.0,87069.0,0.00017223]
[1765883959429,0.1015289,87059.0,87058.0,0.00229733]
[1765883959629,1.20973538,87059.0,87058.0,0.00229733]
[1765883960530,1.20973538,87059.0,87058.0,0.00329733]
[1765883960831,1.20973538,87059.0,87058.0,0.00429733]
[1765883961732,1.20973538,87059.0,87058.0,0.00329733]
[1765883962030,1.20973538,87059.0,87058.0,0.00229733]
[1765883962431,0.09973,87051.0,87050.0,0.09436223]
[1765883962627,0.48865648,87051.0,87050.0,0.09436223]
[1765883962932,0.48865648,87051.0,87050.0,0.00017223]
[1765883963724,0.48865648,87051.0,87050.0,0.00217223]
[1765883971239,1.20789648,87051.0,87050.0,0.22142223]
[1765883971919,0.48865648,87051.0,87050.0,0.22142223]
[1765883972126,0.46053,87051.0,87050.0,0.22142223]
[1765883972434,1.01385,87051.0,87050.0,0.22142223]
[1765883976535,1.01385,87051.0,87046.0,0.0942]
[1765883976536,0.0905505,87047.0,87046.0,0.0942]
[1765883976735,0.0905534,87025.0,87023.0,0.0117391]
[1765883976935,1.19859218,87025.0,87017.0,0.06301]
[1765883977439,1.1705534,87025.0,87017.0,0.06301]
[1765883977634,1.19872577,87025.0,87017.0,0.06301]
[1765883977840,1.17069321,87025.0,87017.0,0.07439985]
[1765883978832,0.0895944,87018.0,87017.0,0.07439985]
[1765883979040,0.0895944,87018.0,87017.0,0.06301]
[1765883979540,0.0781,87017.0,87016.0,0.01166136]
[1765883980037,0.0781,87017.0,87016.0,0.07467136]
[1765883980637,0.0781,87017.0,87016.0,0.27623136]
[1765883981142,0.0886538,87023.0,87016.0,0.07567136]
[1765883981443,0.0886545,87017.0,87016.0,0.07667136]
[1765883981830,0.0886545,87017.0,87016.0,0.17546136]
[1765883982240,0.0886545,87017.0,87016.0,0.17446136]
[1765883982442,0.0886545,87017.0,87016.0,0.17546136]
[1765883982738,0.0886545,87017.0,87016.0,0.27723136]
[1765883982933,0.0886545,87017.0,87016.0,0.27523136]
[1765883983132,0.0886545,87017.0,87016.0,0.27723136]
[1765883983335,0.07716,87017.0,87016.0,0.27723136]
[1765883986439,0.07716,87017.0,87016.0,0.26574234]
[1765883987643,0.07716,87017.0,87016.0,0.27702468]
[1765883989141,0.07716,87017.0,87016.0,0.26574234]
[1765883989346,0.09016285,87017.0,87016.0,0.26574234]
[1765883989841,0.09016285,87017.0,87016.0,0.06518234]
[1765883990234,0.09016285,87017.0,87016.0,0.00217234]
[1765883991149,0.09015967,87017.0,87016.0,0.00217234]
[1765884003653,0.09015967,87017.0,87016.0,0.20545234]
[1765884004055,0.80959967,87017.0,87016.0,0.20545234]
[1765884004848,0.80959967,87017.0,87016.0,0.00217234]
[1765884005543,0.09015967,87017.0,87016.0,0.20329234]
[1765884005751,0.80959967,87017.0,87016.0,0.20329234]
[1765884005949,0.80959967,87017.0,87016.0,0.00217234]
[1765884008057,0.80959967,87017.0,87016.0,0.20329234]
[1765884013959,0.09015967,87017.0,87016.0,0.20329234]
[1765884014161,0.51875967,87017.0,87016.0,0.21478694]
[1765884016366,0.02799967,87017.0,87016.0,0.21478694]
[1765884017666,0.71944,87018.0,87017.0,0.20112]
[1765884017857,0.74759833,87018.0,87017.0,0.20112]
[1765884018358,0.71944,87018.0,87017.0,0.20112]
[1765884018758,0.71944,87018.0,87017.0,0.20212]
[1765884019163,0.71944,87018.0,87017.0,0.20312]
[1765884024369,0.01617981,87025.0,87024.0,0.26154]
[1765884024571,0.01617981,87025.0,87024.0,0.2730336]
[1765884024874,0.04430857,87025.0,87024.0,0.2730336]
[1765884025476,0.04430857,87025.0,87024.0,0.2740336]
[1765884026267,0.02826857,87025.0,87024.0,0.2740336]
[1765884027363,0.00013981,87025.0,87024.0,0.2740336]
[1765884028377,0.01596234,87033.0,87032.0,0.2126125]
[1765884029577,0.01696234,87033.0,87032.0,0.2126125]
[1765884030372,0.00117234,87033.0,87032.0,0.2126125]
[1765884030776,0.00117234,87033.0,87032.0,0.2146125]
[1765884030977,0.01547234,87033.0,87032.0,0.2146125]
[1765884031179,0.00017234,87033.0,87032.0,0.2156125]
[1765884031679,0.00017234,87033.0,87032.0,0.2146125]
[1765884031878,0.00017234,87033.0,87032.0,0.2156125]
[1765884032480,0.04178474,87033.0,87032.0,0.2156125]
[1765884040089,0.03029234,87033.0,87032.0,0.2156125]
[1765884040789,0.04178474,87033.0,87032.0,0.2156125]
[1765884041291,0.06957557,87033.0,87032.0,0.003]
[1765884042391,0.06957557,87033.0,87032.0,0.001]
[1765884043994,0.0388826,87031.0,87030.0,0.15683]
[1765884044193,0.06667343,87031.0,87030.0,0.15683]
[1765884044577,0.06667343,87031.0,87030.0,0.25658]
[1765884044784,0.06667343,87031.0,87030.0,0.06042]
[1765884045193,0.06667343,87031.0,87030.0,0.06142]
[1765884047091,0.06667343,87031.0,87030.0,0.15783]
[1765884047595,0.06767343,87031.0,87030.0,0.25758]
[1765884048093,0.0398826,87031.0,87030.0,0.25658]
[1765884048984,0.06770738,87031.0,87030.0,0.25658]
[1765884049290,0.0388826,87031.0,87030.0,0.25658]
[1765884049496,0.0398826,87031.0,87030.0,0.25658]
[1765884052188,0.06771021,87031.0,87030.0,0.25658]
[1765884061410,0.06771021,87031.0,87030.0,0.06042]
[1765884061707,0.06771021,87031.0,87028.0,0.0614]
[1765884061708,0.0354929,87029.0,87028.0,0.0614]
[1765884061906,0.42412051,87029.0,87028.0,0.25756]
[1765884063102,0.42412051,87029.0,87028.0,0.25856]
[1765884064416,0.42412051,87029.0,87028.0,0.25756]
[1765884064922,0.42512051,87029.0,87028.0,0.25756]
[1765884069313,0.42412051,87029.0,87028.0,0.25756]
[1765884069710,0.42412051,87029.0,87028.0,0.25856]
[1765884070306,0.42412051,87029.0,87028.0,0.25756]
[1765884070517,0.42412051,87029.0,87028.0,0.25856]
[1765884070719,0.42412051,87029.0,87028.0,0.0624]
[1765884071018,0.42412051,87029.0,87028.0,0.2637]
[1765884073012,0.42412051,87029.0,87028.0,0.2627]
[1765884073218,0.42512051,87029.0,87028.0,0.2627]
[1765884074217,0.42512051,87029.0,87028.0,0.35692]
[1765884074717,0.42512051,87029.0,87028.0,0.15562]
[1765884075224,0.42512051,87029.0,87028.0,0.35692]
[1765884077024,1.14432051,87029.0,87028.0,0.35692]
[1765884078318,1.13282761,87029.0,87028.0,0.35692]
[1765884078629,1.10882761,87029.0,87028.0,0.35692]
[1765884078828,0.38962761,87029.0,87028.0,0.35692]
[1765884079013,0.38862761,87029.0,87028.0,0.35692]
[1765884079216,0.38862761,87029.0,87028.0,0.35792]
[1765884079929,0.38862761,87029.0,87028.0,0.35692]
[1765884080128,0.38862761,87029.0,87028.0,0.35892]
[1765884081527,0.38862761,87029.0,87028.0,0.35792]
[1765884081727,0.38862761,87029.0,87028.0,0.35992]
[1765884084330,0.39645761,87029.0,87028.0,0.35992]
[1765884085329,0.02782761,87029.0,87028.0,0.35992]
[1765884085522,0.00017234,87033.0,87032.0,0.26272]
[1765884086021,0.02814419,87033.0,87032.0,0.2742125]
[1765884086922,0.02814419,87033.0,87032.0,0.2752125]
[1765884087634,0.02814419,87033.0,87032.0,0.2762125]
[1765884088035,0.7192,87036.0,87035.0,0.2127921]
[1765884088228,0.39498,87046.0,87045.0,0.2127908]
[1765884089436,0.3608,87046.0,87045.0,0.2127908]
[1765884089633,0.3618,87046.0,87045.0,0.2127908]
[1765884090037,0.00017234,87054.0,87053.0,0.2127897]
[1765884090038,0.01166204,87054.0,87053.0,0.2127897]
[1765884090234,0.00017234,87054.0,87053.0,0.2127897]
[1765884091132,0.00217234,87054.0,87053.0,0.2127897]
[1765884091529,0.00217234,87054.0,87053.0,0.2147897]
[1765884091729,0.07015234,87054.0,87053.0,0.2033]
[1765884091934,0.07015234,87054.0,87053.0,0.09969]
[1765884092133,0.07015234,87054.0,87053.0,0.2033]
[1765884092633,0.06815234,87054.0,87053.0,0.2033]
[1765884092932,0.06815234,87054.0,87053.0,0.2053]
[1765884093141,0.06815234,87054.0,87053.0,0.004]
[1765884093440,0.06815234,87054.0,87053.0,0.002]
[1765884093835,0.06815234,87054.0,87053.0,0.09842]
[1765884094138,0.06815234,87054.0,87053.0,0.19062]
[1765884094324,0.0642,87051.0,87050.0,0.25204]
[1765884096840,0.0642,87051.0,87050.0,0.06142]
[1765884097639,0.0642,87051.0,87050.0,0.15784]
[1765884098832,0.0652,87051.0,87050.0,0.15784]
[1765884099031,0.0652,87051.0,87050.0,0.25204]
[1765884100143,0.09397753,87051.0,87050.0,0.25204]
[1765884102332,0.09297753,87051.0,87050.0,0.25204]
[1765884102538,0.09397753,87051.0,87050.0,0.25204]
[1765884103240,0.09297753,87051.0,87050.0,0.25204]
[1765884103743,0.0687507,87046.0,87045.0,0.0942]
[1765884103931,1.17632823,87046.0,87045.0,0.0942]
[1765884104241,0.05726,87045.0,87044.0,0.25204]
[1765884104439,0.08503753,87045.0,87044.0,0.25204]
[1765884106441,0.08603753,87045.0,87044.0,0.25204]
[1765884108846,0.08503753,87045.0,87044.0,0.25204]
[1765884109034,0.08503753,87045.0,87044.0,0.25304]
[1765884110546,0.08503753,87045.0,87044.0,0.25404]
[1765884113140,0.08503753,87045.0,87044.0,0.25304]
[1765884113536,0.08503753,87045.0,87044.0,0.06242]
[1765884113941,0.08503753,87045.0,87044.0,0.001]
[1765884114540,0.05108,87041.0,87040.0,0.25204]
[1765884114859,0.07885753,87041.0,87040.0,0.25204]
[1765884115050,0.09034883,87041.0,87040.0,0.25204]
[1765884115750,0.09034883,87041.0,87040.0,0.25304]
[1765884122253,0.03926883,87041.0,87040.0,0.25304]
[1765884123449,0.06257883,87041.0,87040.0,0.25304]
[1765884124049,0.08510883,87041.0,87040.0,0.25304]
[1765884125460,0.06257883,87041.0,87040.0,0.25304]
[1765884125662,0.02777753,87041.0,87040.0,0.25304]
[1765884125856,0.03926883,87041.0,87040.0,0.25304]
[1765884126556,0.02777753,87041.0,87040.0,0.25304]
[1765884128463,0.719,87046.0,87045.0,0.24669]
[1765884130956,0.719,87046.0,87045.0,0.24869]
[1765884131359,0.719,87046.0,87045.0,0.24969]
[1765884135671,0.0114904,87048.0,87047.0,0.19124]
[1765884136569,0.1957604,87048.0,87047.0,0.19124]
[1765884136777,0.18427,87046.0,87045.0,0.09713]
[1765884137076,0.18427,87046.0,87045.0,0.19124]